fUSD/lending_fUSD_20240708
["ID","MTS","AMOUNT","RATE_DAILY","PERIOD"]
[331520362,1720446647388,-500.0,0.0005041,120]
[331520363,1720446647493,-500.0,0.0005041,120]
[331520364,1720446647592,-698.26,0.0005041,120]
[331520365,1720446647693,-500.0,0.0005041,120]
[331520366,1720446647794,-580.79,0.0005041,120]
[331520367,1720446647897,-1752.42,0.0005041,120]
[331520368,1720446647998,-500.0,0.0005041,120]
[331520369,1720446648097,-501.90749432,0.0005041,120]
[331520370,1720446648199,-500.0,0.0005041,120]
[331520371,1720446648300,-500.0,0.0005041,120]
[331520372,1720446648410,-1395.37,0.0005041,120]
[331520373,1720446648519,-500.0,0.0005041,120]
[331520374,1720446648631,-500.0,0.0005041,120]
[331520375,1720446648746,-500.0,0.0005041,120]
[331520376,1720446648858,-500.0,0.0005041,120]
[331520377,1720446648971,-789.75,0.0005041,120]
[331520378,1720446649081,-500.0,0.0005041,120]
[331520379,1720446649194,-500.0,0.0005041,120]
[331520380,1720446649305,-500.0,0.0005041,120]
[331520381,1720446649422,-500.0,0.0005041,120]
[331520382,1720446649537,-500.0,0.0005041,120]
[331520383,1720446649658,-500.0,0.0005041,120]
[331520384,1720446649780,-500.0,0.0005041,120]
[331520385,1720446649904,-618.35,0.0005041,120]
[331520386,1720446650020,-439.43622914,0.0005041,120]
[331520387,1720446650131,-500.0,0.0005041,120]
[331520388,1720446650239,-500.0,0.0005041,120]
[331520389,1720446650343,-506.52,0.0005041,120]
[331520390,1720446650448,-768.09,0.0005041,120]
[331520391,1720446650553,-500.0,0.0005041,120]
[331520392,1720446650662,-610.82,0.0005041,120]
[331520393,1720446650767,-500.0,0.0005041,120]
[331520394,1720446650869,-621.72,0.0005041,120]
[331520395,1720446650971,-500.0,0.0005041,120]
[331520396,1720446651074,-500.0,0.0005041,120]
[331520397,1720446651179,-500.0,0.0005041,120]
[331520398,1720446651283,-1216.49,0.0005041,120]
[331520399,1720446651385,-3725.93,0.0005041,120]
[331520400,1720446651492,-935.49,0.0005041,120]
[331520401,1720446651598,-675.31,0.0005041,120]
[331520402,1720446651699,-2876.66,0.0005041,120]
[331520403,1720446651802,-586.12,0.0005041,120]
[331520404,1720446651902,-500.0,0.0005041,120]
[331520405,1720446652004,-1521.41,0.0005041,120]
[331520406,1720446652101,-500.0,0.0005041,120]
[331520407,1720446652215,-500.0,0.0005041,120]
[331520408,1720446652328,-8657.52,0.0005041,120]
[331520409,1720446652429,-155.51654115,0.00050484,60]
[331520410,1720446652532,-503.93306489,0.00050684,120]
[331520411,1720446652633,-500.0,0.00050684,120]
[331520412,1720446652874,-704.82,0.00050684,120]
[331520413,1720446652976,-500.0,0.00050684,120]
[331520414,1720446653074,-500.0,0.00050684,120]
[331520415,1720446653172,-500.0,0.00050684,120]
[331520416,1720446653274,-1163.26,0.00050684,120]
[331520417,1720446653385,-500.0,0.00050684,120]
[331520418,1720446653496,-966.97,0.00050684,120]
[331520419,1720446653608,-500.0,0.00050684,120]
[331520420,1720446653723,-1435.54,0.00050684,120]
[331520421,1720446653830,-982.43,0.00050684,120]
[331520422,1720446653939,-500.0,0.00050684,120]
[331520423,1720446654044,-500.0,0.00050684,120]
[331520424,1720446654155,-500.0,0.00050684,120]
[331520425,1720446654271,-500.0,0.00050684,120]
[331520426,1720446654390,-2601.42,0.00050684,120]
[331520427,1720446654510,-500.0,0.00050684,120]
[331520428,1720446654629,-460.86,0.00050684,120]
[331520429,1720446654746,-500.0,0.00050684,120]
[331520430,1720446654855,-500.0,0.00050684,120]
[331520431,1720446654961,-576.67,0.00050684,120]
[331520432,1720446655068,-656.98,0.00050684,120]
[331520433,1720446655176,-875.42,0.00050684,120]
[331520434,1720446655284,-500.0,0.00050684,120]
[331520435,1720446655393,-500.0,0.00050684,120]
[331520436,1720446655503,-500.0,0.00050684,120]
[331520437,1720446655612,-500.0,0.00050684,120]
[331520438,1720446655719,-500.0,0.00050684,120]
[331520439,1720446655825,-601.48,0.00050684,120]
[331520440,1720446655931,-927.61,0.00050684,120]
[331520441,1720446656038,-500.0,0.00050684,120]
[331520442,1720446656148,-500.0,0.00050684,120]
[331520443,1720446656256,-663.11,0.00050684,120]
[331520444,1720446656367,-500.0,0.00050684,120]
[331520445,1720446656479,-995.13,0.00050684,120]
[331520446,1720446656590,-500.0,0.00050684,120]
[331520447,1720446656705,-503.89,0.00050684,120]
[331520448,1720446656815,-500.0,0.00050684,120]
[331520449,1720446656921,-272.39,0.00050684,120]
[331520450,1720446657026,-410.97,0.00050684,120]
[331520451,1720446657131,-2052.66,0.00050684,120]
[331520452,1720446657237,-500.0,0.00050684,120]
[331520453,1720446657346,-500.0,0.00050684,120]
[331520454,1720446657452,-500.0,0.00050684,120]
[331520455,1720446657556,-500.0,0.00050684,120]
[331520456,1720446657661,-793.83,0.00050684,120]
[331520457,1720446657764,-214.35127129,0.00050684,120]
[331520458,1720446657869,-500.0,0.00050684,120]
[331520459,1720446657972,-179.44,0.00050684,120]
[331520460,1720446658077,-280.0,0.00050684,120]
[331520461,1720446658181,-500.0,0.00050684,120]
[331520462,1720446658289,-680.97,0.00050684,120]
[331520463,1720446658400,-500.0,0.00050684,120]
[331520464,1720446658514,-500.0,0.00050684,120]
[331520465,1720446658626,-500.0,0.00050684,120]
[331520466,1720446658742,-576.64,0.00050684,120]
[331520467,1720446658854,-393.6,0.00050684,120]
[331520468,1720446658971,-500.0,0.00050684,120]
[331520469,1720446659082,-500.0,0.00050684,120]
[331520470,1720446659194,-500.0,0.00050684,120]
[331520471,1720446659308,-1133.72,0.00050684,120]
[331520472,1720446659424,-844.3,0.00050684,120]
[331520473,1720446659548,-500.0,0.00050684,120]
[331520474,1720446659667,-500.0,0.00050684,120]
[331520475,1720446659783,-626.46,0.00050684,120]
[331520476,1720446659895,-500.0,0.00050684,120]
[331520477,1720446660010,-858.72,0.00050684,120]
[331520478,1720446660118,-606.39,0.00050684,120]
[331520479,1720446660233,-500.0,0.00050684,120]
[331520480,1720446660349,-500.0,0.00050684,120]
[331520481,1720446660463,-608.68,0.00050684,120]
[331520482,1720446660572,-586.51,0.00050684,120]
[331520483,1720446660680,-500.0,0.00050684,120]
[331520484,1720446660787,-500.0,0.00050684,120]
[331520485,1720446660892,-500.0,0.00050684,120]
[331520486,1720446661004,-500.0,0.00050684,120]
[331520487,1720446661106,-500.0,0.00050684,120]
[331520488,1720446661221,-2035.02,0.00050684,120]
[331520489,1720446661336,-500.0,0.00050684,120]
[331520490,1720446661448,-500.0,0.00050684,120]
[331520491,1720446661556,-698.26,0.00050684,120]
[331520492,1720446661662,-500.0,0.00050684,120]
[331520493,1720446661768,-580.79,0.00050684,120]
[331520494,1720446661872,-1752.42,0.00050684,120]
[331520495,1720446661978,-318.09637313,0.00050684,120]
[331520496,1720446662082,-500.0,0.00050684,120]
[331520497,1720446662187,-500.0,0.00050684,120]
[331520498,1720446662289,-1395.37,0.00050684,120]
[331520499,1720446662395,-500.0,0.00050684,120]
[331520500,1720446662502,-387.2,0.00050684,120]
[331520501,1720446662605,-493.37122849,0.00050684,120]
[331520502,1720446662708,-500.0,0.00050684,120]
[331520503,1720446662814,-789.75,0.00050684,120]
[331520504,1720446662917,-500.0,0.00050684,120]
[331520505,1720446663022,-500.0,0.00050684,120]
[331520506,1720446663124,-615.60585778,0.00050684,120]
[331520507,1720446663235,-500.0,0.00050684,120]
[331520508,1720446663344,-503.92859511,0.00050684,120]
[331520509,1720446663462,-500.0,0.00050684,120]
[331520510,1720446663580,-500.0,0.00050684,120]
[331520511,1720446663698,-618.35,0.00050684,120]
[331520512,1720446663818,-500.0,0.00050684,120]
[331520513,1720446663925,-500.0,0.00050684,120]
[331520514,1720446664035,-506.52,0.00050684,120]
[331520515,1720446664149,-768.09,0.00050684,120]
[331520516,1720446664406,-500.0,0.00050684,120]
[331520517,1720446664520,-610.82,0.00050684,120]
[331520518,1720446664634,-500.0,0.00050684,120]
[331520519,1720446664747,-621.72,0.00050684,120]
[331520520,1720446664861,-500.0,0.00050684,120]
[331520521,1720446664972,-500.0,0.00050684,120]
[331520522,1720446665078,-500.0,0.00050684,120]
[331520523,1720446665185,-1216.49,0.00050684,120]
[331520524,1720446665298,-3725.93,0.00050684,120]
[331520525,1720446665419,-935.49,0.00050684,120]
[331520526,1720446665523,-675.31,0.00050684,120]
[331520527,1720446665639,-2876.66,0.00050684,120]
[331520528,1720446665751,-586.12,0.00050684,120]
[331520529,1720446665857,-432.48,0.00050684,120]
[331520530,1720446665963,-297.652746,0.00050684,120]
[331520531,1720446666071,-1521.41,0.00050684,120]
[331520532,1720446666183,-297.652746,0.00050684,120]
[331520533,1720446666290,-500.0,0.00050684,120]
[331520534,1720446666399,-938.43613,0.00050684,120]
[331520535,1720446666508,-151.0,0.00050684,120]
[331520536,1720446666620,-500.0,0.00050684,120]
[331520537,1720446666729,-938.43613,0.00050684,120]
[331520538,1720446666834,-8657.52,0.00050684,120]
[331520539,1720446666943,-249.91,0.00050958,120]
[331520540,1720446667047,-704.82,0.00050958,120]
[331520541,1720446667153,-305.46,0.00050958,120]
[331520542,1720446667263,-500.0,0.00050958,120]
[331520543,1720446667368,-1163.26,0.00050958,120]
[331520544,1720446667475,-500.0,0.00050958,120]
[331520545,1720446667587,-966.97,0.00050958,120]
[331520546,1720446667692,-500.0,0.00050958,120]
[331520547,1720446667803,-1435.54,0.00050958,120]
[331520548,1720446667918,-982.43,0.00050958,120]
[331520549,1720446668024,-500.0,0.00050958,120]
[331520550,1720446668130,-500.0,0.00050958,120]
[331520551,1720446668239,-500.0,0.00050958,120]
[331520552,1720446668347,-500.0,0.00050958,120]
[331520553,1720446668464,-2601.42,0.00050958,120]
[331520554,1720446668578,-266.47,0.00050958,120]
[331520555,1720446668691,-500.0,0.00050958,120]
[331520556,1720446668809,-500.0,0.00050958,120]
[331520557,1720446668918,-576.67,0.00050958,120]
[331520558,1720446669030,-656.98,0.00050958,120]
[331520559,1720446669141,-875.42,0.00050958,120]
[331520560,1720446669263,-500.0,0.00050958,120]
[331520561,1720446669385,-500.0,0.00050958,120]
[331520562,1720446669507,-500.0,0.00050958,120]
[331520563,1720446669629,-500.0,0.00050958,120]
[331520564,1720446669753,-519.74618334,0.00050958,120]
[331520565,1720446669880,-601.48,0.00050958,120]
[331520566,1720446669992,-927.61,0.00050958,120]
[331520567,1720446670109,-500.0,0.00050958,120]
[331520568,1720446670219,-663.11,0.00050958,120]
[331520569,1720446670330,-500.0,0.00050958,120]
[331520570,1720446670443,-995.13,0.00050958,120]
[331520571,1720446670556,-500.0,0.00050958,120]
[331520572,1720446670676,-503.89,0.00050958,120]
[331520573,1720446670787,-500.0,0.00050958,120]
[331520574,1720446670895,-2052.66,0.00050958,120]
[331520575,1720446670999,-500.0,0.00050958,120]
[331520576,1720446671093,-500.0,0.00050958,120]
[331520577,1720446671187,-500.0,0.00050958,120]
[331520578,1720446671278,-500.0,0.00050958,120]
[331520579,1720446671369,-793.83,0.00050958,120]
[331520580,1720446671460,-500.0,0.00050958,120]
[331520581,1720446671571,-500.0,0.00050958,120]
[331520582,1720446671674,-680.97,0.00050958,120]
[331520583,1720446671773,-334.30821398,0.00050958,120]
[331520584,1720446671872,-500.0,0.00050958,120]
[331520585,1720446671972,-500.0,0.00050958,120]
[331520586,1720446672066,-576.64,0.00050958,120]
[331520587,1720446672170,-500.0,0.00050958,120]
[331520588,1720446672265,-500.0,0.00050958,120]
[331520589,1720446672363,-500.0,0.00050958,120]
[331520590,1720446672463,-844.3,0.00050958,120]
[331520591,1720446672565,-500.0,0.00050958,120]
[331520592,1720446672669,-500.0,0.00050958,120]
[331520593,1720446672772,-626.46,0.00050958,120]
[331520594,1720446672872,-500.0,0.00050958,120]
[331520595,1720446672972,-858.72,0.00050958,120]
[331520596,1720446673071,-606.39,0.00050958,120]
[331520597,1720446673171,-500.0,0.00050958,120]
[331520598,1720446673270,-500.0,0.00050958,120]
[331520599,1720446673376,-608.68,0.00050958,120]
[331520600,1720446673488,-586.51,0.00050958,120]
[331520601,1720446673605,-500.0,0.00050958,120]
[331520602,1720446673720,-500.0,0.00050958,120]
[331520603,1720446673820,-500.0,0.00050958,120]
[331520604,1720446673925,-500.0,0.00050958,120]
[331520605,1720446674026,-432.48067449,0.00050958,120]
[331520606,1720446674135,-246.12,0.00050958,120]
[331520607,1720446674242,-500.0,0.00050958,120]
[331520608,1720446674347,-698.26,0.00050958,120]
[331520609,1720446674454,-500.0,0.00050958,120]
[331520610,1720446674559,-580.79,0.00050958,120]
[331520611,1720446674667,-1752.42,0.00050958,120]
[331520612,1720446674765,-500.0,0.00050958,120]
[331520613,1720446674863,-482.24085716,0.00050958,120]
[331520614,1720446674964,-1395.37,0.00050958,120]
[331520615,1720446675066,-498.02815956,0.00050958,120]
[331520616,1720446675171,-789.75,0.00050958,120]
[331520617,1720446675272,-500.0,0.00050958,120]
[331520618,1720446675375,-500.0,0.00050958,120]
[331520619,1720446675479,-500.0,0.00050958,120]
[331520620,1720446675761,-500.0,0.00050958,120]
[331520621,1720446675867,-500.0,0.00050958,120]
[331520622,1720446675971,-618.35,0.00050958,120]
[331520623,1720446676071,-500.0,0.00050958,120]
[331520624,1720446676176,-500.0,0.00050958,120]
[331520625,1720446676280,-506.52,0.00050958,120]
[331520626,1720446676389,-768.09,0.00050958,120]
[331520627,1720446676496,-500.0,0.00050958,120]
[331520628,1720446676598,-610.82,0.00050958,120]
[331520629,1720446676703,-297.21599499,0.00050958,120]
[331520630,1720446676807,-621.72,0.00050958,120]
[331520631,1720446676907,-500.0,0.00050958,120]
[331520632,1720446677015,-740.949462,0.00050958,120]
[331520633,1720446677116,-500.0,0.00050958,120]
[331520634,1720446677215,-740.949462,0.00050958,120]
[331520635,1720446677314,-500.0,0.00050958,120]
[331520636,1720446677417,-151.0,0.00050958,120]
[331520637,1720446677515,-1216.49,0.00050958,120]
[331520638,1720446677615,-437.333711,0.00050958,120]
[331520639,1720446677723,-3725.93,0.00050958,120]
[331520640,1720446677838,-437.333711,0.00050958,120]
[331520641,1720446677953,-935.49,0.00050958,120]
[331520642,1720446678061,-340.811865,0.00050958,120]
[331520643,1720446678176,-340.811865,0.00050958,120]
[331520644,1720446678284,-675.31,0.00050958,120]
[331520645,1720446678405,-2876.66,0.00050958,120]
[331520646,1720446678533,-586.12,0.00050958,120]
[331520647,1720446678656,-1521.41,0.00050958,120]
[331520648,1720446678778,-500.0,0.00050958,120]
[331520649,1720446678900,-156.75,0.00050958,120]
[331520650,1720446679009,-8657.52,0.00050958,120]
[331520651,1720446679118,-100000.0,0.00051,41]
[331520652,1720446679227,-100000.0,0.00051,51]
[331520653,1720446679333,-174.190582,0.00051,120]
[331520654,1720446679447,-174.190582,0.00051,120]
[331520655,1720446679560,-310.756193,0.00051,60]
[331520656,1720446679676,-310.756193,0.00051,60]
[331520657,1720446679794,-151.0,0.00051,120]
[331520658,1720446679915,-151.0,0.00051,120]
[331520659,1720446680032,-216.443034,0.00051,120]
[331520660,1720446680140,-151.0,0.00051,120]
[331520661,1720446680247,-216.443034,0.00051,120]
[331520662,1720446680350,-198.096338,0.00051,120]
[331520663,1720446680451,-151.0,0.00051,120]
[331520664,1720446680550,-524.979918,0.00051,120]
[331520665,1720446680652,-198.096338,0.00051,120]
[331520666,1720446680754,-524.979918,0.00051,120]
[331520667,1720446680857,-704.82,0.00051232,120]
[331520668,1720446680961,-500.0,0.00051232,120]
[331520669,1720446681060,-1163.26,0.00051232,120]
[331520670,1720446681163,-500.0,0.00051232,120]
[331520671,1720446681264,-966.97,0.00051232,120]
[331520672,1720446681363,-500.0,0.00051232,120]
[331520673,1720446681467,-1435.54,0.00051232,120]
[331520674,1720446681567,-982.43,0.00051232,120]
[331520675,1720446681671,-500.0,0.00051232,120]
[331520676,1720446681769,-500.0,0.00051232,120]
[331520677,1720446681871,-500.0,0.00051232,120]
[331520678,1720446681971,-500.0,0.00051232,120]
[331520679,1720446682072,-2601.42,0.00051232,120]
[331520680,1720446682170,-500.0,0.00051232,120]
[331520681,1720446682269,-500.0,0.00051232,120]
[331520682,1720446682372,-576.67,0.00051232,120]
[331520683,1720446682475,-656.98,0.00051232,120]
[331520684,1720446682577,-875.42,0.00051232,120]
[331520685,1720446682678,-500.0,0.00051232,120]
[331520686,1720446682777,-500.0,0.00051232,120]
[331520687,1720446682877,-500.0,0.00051232,120]
[331520688,1720446682977,-500.0,0.00051232,120]
[331520689,1720446683080,-601.48,0.00051232,120]
[331520690,1720446683178,-927.61,0.00051232,120]
[331520691,1720446683275,-500.0,0.00051232,120]
[331520692,1720446683381,-663.11,0.00051232,120]
[331520693,1720446683496,-500.0,0.00051232,120]
[331520694,1720446683614,-995.13,0.00051232,120]
[331520695,1720446683720,-500.0,0.00051232,120]
[331520696,1720446683820,-503.89,0.00051232,120]
[331520697,1720446683923,-500.0,0.00051232,120]
[331520698,1720446684026,-2052.66,0.00051232,120]
[331520699,1720446684125,-500.0,0.00051232,120]
[331520700,1720446684229,-500.0,0.00051232,120]
[331520701,1720446684333,-500.0,0.00051232,120]
[331520702,1720446684438,-500.0,0.00051232,120]
[331520703,1720446684546,-793.83,0.00051232,120]
[331520704,1720446684655,-500.0,0.00051232,120]
[331520705,1720446684753,-500.0,0.00051232,120]
[331520706,1720446684851,-680.97,0.00051232,120]
[331520707,1720446684949,-500.0,0.00051232,120]
[331520708,1720446685048,-500.0,0.00051232,120]
[331520709,1720446685148,-576.64,0.00051232,120]
[331520710,1720446685250,-500.0,0.00051232,120]
[331520711,1720446685350,-500.0,0.00051232,120]
[331520712,1720446685448,-500.0,0.00051232,120]
[331520713,1720446685546,-844.3,0.00051232,120]
[331520714,1720446685642,-500.0,0.00051232,120]
[331520715,1720446685738,-408.35,0.00051232,120]
[331520716,1720446685843,-626.46,0.00051232,120]
[331520717,1720446685946,-500.0,0.00051232,120]
[331520718,1720446686048,-858.72,0.00051232,120]
[331520719,1720446686143,-606.39,0.00051232,120]
[331520720,1720446686240,-500.0,0.00051232,120]
[331520721,1720446686335,-500.0,0.00051232,120]
[331520722,1720446686435,-608.68,0.00051232,120]
[331520723,1720446686532,-586.51,0.00051232,120]
[331520724,1720446686770,-500.0,0.00051232,120]
[331520725,1720446686867,-500.0,0.00051232,120]
[331520726,1720446686972,-500.0,0.00051232,120]
[331520727,1720446687071,-500.0,0.00051232,120]
[331520728,1720446687176,-500.0,0.00051232,120]
[331520729,1720446687277,-698.26,0.00051232,120]
[331520730,1720446687378,-501.18,0.00051232,120]
[331520731,1720446687477,-580.79,0.00051232,120]
[331520732,1720446687580,-1752.42,0.00051232,120]
[331520733,1720446687679,-500.0,0.00051232,120]
[331520734,1720446687776,-1395.37,0.00051232,120]
[331520735,1720446687872,-789.75,0.00051232,120]
[331520736,1720446687970,-182.77971558,0.00051232,120]
[331520737,1720446688068,-500.0,0.00051232,120]
[331520738,1720446688171,-500.0,0.00051232,120]
[331520739,1720446688264,-500.0,0.00051232,120]
[331520740,1720446688360,-500.0,0.00051232,120]
[331520741,1720446688472,-618.35,0.00051232,120]
[331520742,1720446688586,-500.0,0.00051232,120]
[331520743,1720446688695,-509.85209342,0.00051232,120]
[331520744,1720446688796,-506.52,0.00051232,120]
[331520745,1720446688898,-768.09,0.00051232,120]
[331520746,1720446689000,-494.20585928,0.00051232,120]
[331520747,1720446689098,-610.82,0.00051232,120]
[331520748,1720446689205,-621.72,0.00051232,120]
[331520749,1720446689311,-500.0,0.00051232,120]
[331520750,1720446689424,-500.0,0.00051232,120]
[331520751,1720446689534,-500.0,0.00051232,120]
[331520752,1720446689640,-1216.49,0.00051232,120]
[331520753,1720446689743,-3725.93,0.00051232,120]
[331520754,1720446689841,-935.49,0.00051232,120]
[331520755,1720446689943,-675.31,0.00051232,120]
[331520756,1720446690039,-2876.66,0.00051232,120]
[331520757,1720446690136,-586.12,0.00051232,120]
[331520758,1720446690242,-1521.41,0.00051232,120]
[331520759,1720446690347,-500.0,0.00051232,120]
[331520760,1720446690455,-8657.52,0.00051232,120]
[331520761,1720446690566,-704.82,0.00051506,120]
[331520762,1720446690666,-1163.26,0.00051506,120]
[331520763,1720446690773,-500.0,0.00051506,120]
[331520764,1720446690873,-966.97,0.00051506,120]
[331520765,1720446690973,-500.0,0.00051506,120]
[331520766,1720446691071,-1435.54,0.00051506,120]
[331520767,1720446691176,-982.43,0.00051506,120]
[331520768,1720446691275,-500.0,0.00051506,120]
[331520769,1720446691374,-500.0,0.00051506,120]
[331520770,1720446691472,-500.0,0.00051506,120]
[331520771,1720446691572,-621.72,0.00051506,120]
[331520772,1720446691673,-2601.42,0.00051506,120]
[331520773,1720446691770,-500.0,0.00051506,120]
[331520774,1720446691866,-500.0,0.00051506,120]
[331520775,1720446691966,-576.67,0.00051506,120]
[331520776,1720446692062,-656.98,0.00051506,120]
[331520777,1720446692163,-875.42,0.00051506,120]
[331520778,1720446692265,-500.0,0.00051506,120]
[331520779,1720446692359,-500.0,0.00051506,120]
[331520780,1720446692466,-503.66773656,0.00051506,120]
[331520781,1720446692568,-500.0,0.00051506,120]
[331520782,1720446692670,-601.48,0.00051506,120]
[331520783,1720446692774,-927.61,0.00051506,120]
[331520784,1720446692868,-301.75,0.00051506,120]
[331520785,1720446692963,-663.11,0.00051506,120]
[331520786,1720446693060,-500.0,0.00051506,120]
[331520787,1720446693158,-995.13,0.00051506,120]
[331520788,1720446693265,-500.0,0.00051506,120]
[331520789,1720446693369,-503.89,0.00051506,120]
[331520790,1720446693486,-500.0,0.00051506,120]
[331520791,1720446693606,-2052.66,0.00051506,120]
[331520792,1720446693724,-500.0,0.00051506,120]
[331520793,1720446693826,-500.0,0.00051506,120]
[331520794,1720446693932,-500.0,0.00051506,120]
[331520795,1720446694037,-500.0,0.00051506,120]
[331520796,1720446694140,-793.83,0.00051506,120]
[331520797,1720446694248,-500.0,0.00051506,120]
[331520798,1720446694354,-500.0,0.00051506,120]
[331520799,1720446694466,-680.97,0.00051506,120]
[331520800,1720446694574,-500.0,0.00051506,120]
[331520801,1720446694685,-500.0,0.00051506,120]
[331520802,1720446694795,-576.64,0.00051506,120]
[331520803,1720446694904,-500.0,0.00051506,120]
[331520804,1720446695013,-500.0,0.00051506,120]
[331520805,1720446695115,-500.0,0.00051506,120]
[331520806,1720446695222,-844.3,0.00051506,120]
[331520807,1720446695331,-500.0,0.00051506,120]
[331520808,1720446695434,-626.46,0.00051506,120]
[331520809,1720446695536,-500.0,0.00051506,120]
[331520810,1720446695637,-858.72,0.00051506,120]
[331520811,1720446695736,-606.39,0.00051506,120]
[331520812,1720446695834,-500.0,0.00051506,120]
[331520813,1720446695930,-500.0,0.00051506,120]
[331520814,1720446696025,-608.68,0.00051506,120]
[331520815,1720446696127,-586.51,0.00051506,120]
[331520816,1720446696228,-500.0,0.00051506,120]
[331520817,1720446696329,-500.0,0.00051506,120]
[331520818,1720446696426,-500.0,0.00051506,120]
[331520819,1720446696524,-500.0,0.00051506,120]
[331520820,1720446696625,-500.0,0.00051506,120]
[331520821,1720446696722,-698.26,0.00051506,120]
[331520822,1720446696820,-580.79,0.00051506,120]
[331520823,1720446696918,-1752.42,0.00051506,120]
[331520824,1720446697023,-500.0,0.00051506,120]
[331520825,1720446697128,-1395.37,0.00051506,120]
[331520826,1720446697226,-2500.0,0.00051506,120]
[331520827,1720446697460,-2561.08689194,0.00051506,120]
[331520828,1720446697563,-789.75,0.00051506,120]
[331520829,1720446697666,-500.0,0.00051506,120]
[331520830,1720446697775,-500.0,0.00051506,120]
[331520831,1720446697877,-500.0,0.00051506,120]
[331520832,1720446697985,-500.0,0.00051506,120]
[331520833,1720446698094,-618.35,0.00051506,120]
[331520834,1720446698203,-500.0,0.00051506,120]
[331520835,1720446698310,-506.52,0.00051506,120]
[331520836,1720446698425,-768.09,0.00051506,120]
[331520837,1720446698546,-610.82,0.00051506,120]
[331520838,1720446698665,-621.72,0.00051506,120]
[331520839,1720446698775,-500.0,0.00051506,120]
[331520840,1720446698880,-500.0,0.00051506,120]
[331520841,1720446698993,-1216.49,0.00051506,120]
[331520842,1720446699108,-3725.93,0.00051506,120]
[331520843,1720446699224,-935.49,0.00051506,120]
[331520844,1720446699342,-675.31,0.00051506,120]
[331520845,1720446699462,-2876.66,0.00051506,120]
[331520846,1720446699581,-586.12,0.00051506,120]
[331520847,1720446699702,-1521.41,0.00051506,120]
[331520848,1720446699823,-704.82,0.0005178,120]
[331520849,1720446699943,-1163.26,0.0005178,120]
[331520850,1720446700051,-500.0,0.0005178,120]
[331520851,1720446700164,-966.97,0.0005178,120]
[331520852,1720446700275,-500.0,0.0005178,120]
[331520853,1720446700385,-1435.54,0.0005178,120]
[331520854,1720446700497,-982.43,0.0005178,120]
[331520855,1720446700609,-500.0,0.0005178,120]
[331520856,1720446700724,-500.0,0.0005178,120]
[331520857,1720446700830,-500.0,0.0005178,120]
[331520858,1720446700947,-2601.42,0.0005178,120]
[331520859,1720446701055,-500.0,0.0005178,120]
[331520860,1720446701162,-500.0,0.0005178,120]
[331520861,1720446701270,-576.67,0.0005178,120]